[Event "Titled Tuesday Blitz November 07 Late 2023"]
[White "Pranav, V"]
[Black "Zakaryan, David"]
[WhiteFideId "25060783"]
[BlackFideId "24101923"]
[WhiteElo "3046"]
[BlackElo "2658"]
[Result "1-0"]
[Round "10"]
[TimeControl "180+1"]
[Date "2023.11.07"]
[WhiteClock "0:00:29"]
[BlackClock "0:00:06"]
[Board "16"]

1. Nf3 {[%clk 0:03:00]}  d5 {[%clk 0:02:59]} 2. g3 {[%clk 0:03:00]}  g6 {[%clk 0:02:59]} 3. Bg2 {[%clk 0:03:01]}  Bg7 {[%clk 0:03:00]} 4. O-O {[%clk 0:03:02]}  e5 {[%clk 0:02:59]} 5. d3 {[%clk 0:03:02]}  Ne7 {[%clk 0:02:59]} 6. Nbd2 {[%clk 0:03:02]}  O-O {[%clk 0:02:57]} 7. e4 {[%clk 0:03:02]}  Nbc6 {[%clk 0:02:57]} 8. Re1 {[%clk 0:03:00]}  Re8 {[%clk 0:02:54]} 9. exd5 {[%clk 0:02:56]}  Nxd5 {[%clk 0:02:55]} 10. Ne4 {[%clk 0:02:53]}  h6 {[%clk 0:02:50]} 11. Bd2 {[%clk 0:02:48]}  a5 {[%clk 0:02:48]} 12. a4 {[%clk 0:02:46]}  b6 {[%clk 0:02:43]} 13. Nc3 {[%clk 0:02:41]}  Be6 {[%clk 0:02:35]} 14. Nb5 {[%clk 0:02:33]}  Qd7 {[%clk 0:02:30]} 15. c3 {[%clk 0:02:17]}  Rad8 {[%clk 0:02:23]} 16. Qc2 {[%clk 0:02:13]}  Nde7 {[%clk 0:02:11]} 17. Rad1 {[%clk 0:01:45]}  Bf5 {[%clk 0:02:04]} 18. Bf1 {[%clk 0:01:41]}  Kh7 {[%clk 0:01:29]} 19. Nh4 {[%clk 0:01:28]}  Bg4 {[%clk 0:01:26]} 20. f3 {[%clk 0:01:22]}  Be6 {[%clk 0:01:25]} 21. Bc1 {[%clk 0:01:21]}  Bd5 {[%clk 0:01:20]} 22. Be2 {[%clk 0:01:09]}  f5 {[%clk 0:01:09]} 23. Ng2 {[%clk 0:01:04]}  Nc8 {[%clk 0:01:01]} 24. Ne3 {[%clk 0:01:02]}  Be6 {[%clk 0:01:02]} 25. Bf1 {[%clk 0:01:02]}  Qf7 {[%clk 0:01:01]} 26. Nc4 {[%clk 0:01:00]}  Bd5 {[%clk 0:00:53]} 27. Qf2 {[%clk 0:00:59]}  Nb8 {[%clk 0:00:18]} 28. b3 {[%clk 0:00:53]}  Na6 {[%clk 0:00:18]} 29. d4 {[%clk 0:00:51]}  c6 {[%clk 0:00:16]} 30. Nxe5 {[%clk 0:00:38]}  Bxe5 {[%clk 0:00:14]} 31. dxe5 {[%clk 0:00:38]}  cxb5 {[%clk 0:00:15]} 32. Bxb5 {[%clk 0:00:38]}  Nc5 {[%clk 0:00:15]} 33. Bxe8 {[%clk 0:00:36]}  Qxe8 {[%clk 0:00:13]} 34. Qe3 {[%clk 0:00:32]}  Ne6 {[%clk 0:00:11]} 35. c4 {[%clk 0:00:30]}  Ba8 {[%clk 0:00:11]} 36. Rxd8 {[%clk 0:00:30]}  Nxd8 {[%clk 0:00:11]} 37. Qxh6+ {[%clk 0:00:30]}  Kg8 {[%clk 0:00:12]} 38. e6 {[%clk 0:00:29]}  Ne7 {[%clk 0:00:12]} 39. Bb2 {[%clk 0:00:29]}  Nxe6 {[%clk 0:00:05]} 40. Rxe6 {[%clk 0:00:30]}  Qd7 {[%clk 0:00:06]} 41. Qg7# {[%clk 0:00:29]} 1-0


[Site "https://www.chess.com"]

[Event "Titled Tuesday Blitz November 07 Late 2023"]
[White "Aarav Dengla"]
[Black "Bortnyk, Olexandr"]
[WhiteFideId "45059756"]
[BlackFideId "14120828"]
[WhiteElo "2663"]
[BlackElo "3022"]
[Result "0-1"]
[Round "10"]
[TimeControl "180+1"]
[Date "2023.11.07"]
[WhiteClock "0:00:04"]
[BlackClock "0:00:04"]
[Board "17"]

1. e4 {[%clk 0:03:00]}  Nf6 {[%clk 0:03:00]} 2. e5 {[%clk 0:03:00]}  Nd5 {[%clk 0:03:00]} 3. d4 {[%clk 0:03:00]}  d6 {[%clk 0:03:00]} 4. c4 {[%clk 0:03:00]}  Nb6 {[%clk 0:03:00]} 5. exd6 {[%clk 0:02:59]}  exd6 {[%clk 0:03:01]} 6. Be3 {[%clk 0:02:59]}  Be7 {[%clk 0:03:02]} 7. Nf3 {[%clk 0:02:59]}  O-O {[%clk 0:03:03]} 8. Nc3 {[%clk 0:02:58]}  Nc6 {[%clk 0:03:01]} 9. h3 {[%clk 0:02:57]}  Bf5 {[%clk 0:03:01]} 10. Bd3 {[%clk 0:02:58]}  Bxd3 {[%clk 0:03:00]} 11. Qxd3 {[%clk 0:02:59]}  Nb4 {[%clk 0:03:00]} 12. Qe2 {[%clk 0:02:55]}  Bf6 {[%clk 0:03:00]} 13. O-O {[%clk 0:02:52]}  Re8 {[%clk 0:03:00]} 14. Rfd1 {[%clk 0:02:46]}  d5 {[%clk 0:02:56]} 15. b3 {[%clk 0:02:36]}  a5 {[%clk 0:02:36]} 16. Rac1 {[%clk 0:02:11]}  c6 {[%clk 0:01:20]} 17. a3 {[%clk 0:02:04]}  Na6 {[%clk 0:01:19]} 18. Qf1 {[%clk 0:01:39]}  Nc7 {[%clk 0:01:12]} 19. Nh2 {[%clk 0:01:24]}  Bg5 {[%clk 0:01:07]} 20. Bxg5 {[%clk 0:01:11]}  Qxg5 {[%clk 0:01:08]} 21. Nf3 {[%clk 0:01:11]}  Qf4 {[%clk 0:00:58]} 22. Ne5 {[%clk 0:01:03]}  dxc4 {[%clk 0:00:49]} 23. bxc4 {[%clk 0:01:04]}  Ne6 {[%clk 0:00:49]} 24. g3 {[%clk 0:00:38]}  Qf5 {[%clk 0:00:47]} 25. Rb1 {[%clk 0:00:34]}  Nxd4 {[%clk 0:00:44]} 26. Rxd4 {[%clk 0:00:28]}  Qxe5 {[%clk 0:00:44]} 27. Qd3 {[%clk 0:00:29]}  c5 {[%clk 0:00:34]} 28. Rd6 {[%clk 0:00:21]}  Nxc4 {[%clk 0:00:34]} 29. Rd5 {[%clk 0:00:19]}  Qe6 {[%clk 0:00:17]} 30. Qxc4 {[%clk 0:00:19]}  Qxh3 {[%clk 0:00:18]} 31. Qxc5 {[%clk 0:00:17]}  Rac8 {[%clk 0:00:16]} 32. Qd4 {[%clk 0:00:18]}  h6 {[%clk 0:00:16]} 33. Rd1 {[%clk 0:00:17]}  Qe6 {[%clk 0:00:08]} 34. Rd6 {[%clk 0:00:16]}  Qb3 {[%clk 0:00:08]} 35. Nd5 {[%clk 0:00:15]}  Rc4 {[%clk 0:00:07]} 36. Qd2 {[%clk 0:00:10]}  Rc2 {[%clk 0:00:07]} 37. Qd4 {[%clk 0:00:09]}  Rc4 {[%clk 0:00:06]} 38. Qd2 {[%clk 0:00:09]}  Qxa3 {[%clk 0:00:06]} 39. Rb6 {[%clk 0:00:08]}  Qf3 {[%clk 0:00:04]} 40. Qd3 {[%clk 0:00:07]}  Re1+ {[%clk 0:00:04]} 41. Rxe1 {[%clk 0:00:04]}  Qxd3 {[%clk 0:00:04]} 0-1


[Site "https://www.chess.com"]

[Event "Titled Tuesday Blitz November 07 Late 2023"]
[White "Hong, Andrew"]
[Black "Sturt, Raven"]
[WhiteFideId "2099438"]
[BlackFideId "2007304"]
[WhiteElo "2963"]
[BlackElo "2621"]
[Result "0-1"]
[Round "10"]
[TimeControl "180+1"]
[Date "2023.11.07"]
[WhiteClock "0:01:18"]
[BlackClock "0:00:17"]
[Board "19"]

1. d4 {[%clk 0:02:52]}  f5 {[%clk 0:02:56]} 2. Nc3 {[%clk 0:02:49]}  Nf6 {[%clk 0:02:55]} 3. Bg5 {[%clk 0:02:48]}  d5 {[%clk 0:02:55]} 4. Nf3 {[%clk 0:02:47]}  e6 {[%clk 0:02:54]} 5. e3 {[%clk 0:02:47]}  a6 {[%clk 0:02:54]} 6. Bd3 {[%clk 0:02:46]}  c5 {[%clk 0:02:50]} 7. O-O {[%clk 0:02:45]}  c4 {[%clk 0:02:42]} 8. Be2 {[%clk 0:02:44]}  Nc6 {[%clk 0:02:42]} 9. Ne5 {[%clk 0:02:44]}  Be7 {[%clk 0:02:38]} 10. Nxc6 {[%clk 0:02:38]}  bxc6 {[%clk 0:02:38]} 11. b3 {[%clk 0:02:38]}  Qa5 {[%clk 0:02:20]} 12. Na4 {[%clk 0:02:38]}  h6 {[%clk 0:02:19]} 13. Bf4 {[%clk 0:02:29]}  O-O {[%clk 0:02:17]} 14. c3 {[%clk 0:02:18]}  Ne4 {[%clk 0:02:08]} 15. Qc2 {[%clk 0:02:16]}  c5 {[%clk 0:01:57]} 16. dxc5 {[%clk 0:02:05]}  Nxc5 {[%clk 0:01:45]} 17. Nxc5 {[%clk 0:02:04]}  Qxc5 {[%clk 0:01:44]} 18. bxc4 {[%clk 0:02:04]}  dxc4 {[%clk 0:01:45]} 19. Rab1 {[%clk 0:01:59]}  e5 {[%clk 0:01:43]} 20. Bg3 {[%clk 0:01:56]}  f4 {[%clk 0:01:34]} 21. exf4 {[%clk 0:01:56]}  Bf5 {[%clk 0:01:27]} 22. Qa4 {[%clk 0:01:53]}  Bxb1 {[%clk 0:01:24]} 23. Bxc4+ {[%clk 0:01:45]}  Kh8 {[%clk 0:01:23]} 24. fxe5 {[%clk 0:01:36]}  Bc2 {[%clk 0:01:13]} 25. Qd7 {[%clk 0:01:28]}  Bf5 {[%clk 0:00:57]} 26. Qa4 {[%clk 0:01:28]}  Rac8 {[%clk 0:00:53]} 27. Bb3 {[%clk 0:01:27]}  Qxc3 {[%clk 0:00:47]} 28. h4 {[%clk 0:01:24]}  Bd3 {[%clk 0:00:42]} 29. Rd1 {[%clk 0:01:24]}  Be2 {[%clk 0:00:42]} 30. Rd7 {[%clk 0:01:23]}  Bc5 {[%clk 0:00:35]} 31. Kh2 {[%clk 0:01:20]}  Bb5 {[%clk 0:00:28]} 32. Qg4 {[%clk 0:01:15]}  Bxd7 {[%clk 0:00:28]} 33. Qxd7 {[%clk 0:01:16]}  Qd4 {[%clk 0:00:27]} 34. Qe6 {[%clk 0:01:13]}  a5 {[%clk 0:00:27]} 35. Bc2 {[%clk 0:01:12]}  Ba7 {[%clk 0:00:23]} 36. Bb1 {[%clk 0:01:11]}  Rc1 {[%clk 0:00:22]} 37. Qg6 {[%clk 0:01:06]}  Rxb1 {[%clk 0:00:20]} 38. Qxb1 {[%clk 0:01:07]}  Rxf2 {[%clk 0:00:18]} 39. Bxf2 {[%clk 0:01:05]}  Qxf2 {[%clk 0:00:16]} 40. Qe4 {[%clk 0:01:04]}  Qg1+ {[%clk 0:00:15]} 41. Kg3 {[%clk 0:01:04]}  Qf2+ {[%clk 0:00:16]} 42. Kh3 {[%clk 0:01:03]}  Qe3+ {[%clk 0:00:13]} 43. Qxe3 {[%clk 0:01:03]}  Bxe3 {[%clk 0:00:13]} 44. Kg4 {[%clk 0:01:04]}  Kg8 {[%clk 0:00:13]} 45. Kf5 {[%clk 0:01:04]}  Kf7 {[%clk 0:00:13]} 46. Ke4 {[%clk 0:01:05]}  Bc1 {[%clk 0:00:13]} 47. Kd5 {[%clk 0:01:05]}  h5 {[%clk 0:00:13]} 48. a4 {[%clk 0:01:05]}  Ke7 {[%clk 0:00:13]} 49. Kd4 {[%clk 0:01:04]}  Bd2 {[%clk 0:00:13]} 50. Kd5 {[%clk 0:01:04]}  Be1 {[%clk 0:00:14]} 51. Kc5 {[%clk 0:01:03]}  Bxh4 {[%clk 0:00:14]} 52. Kb5 {[%clk 0:01:04]}  Be1 {[%clk 0:00:14]} 53. Kc4 {[%clk 0:01:04]}  Ke6 {[%clk 0:00:15]} 54. Kd4 {[%clk 0:01:05]}  h4 {[%clk 0:00:15]} 55. Ke4 {[%clk 0:01:06]}  Bg3 {[%clk 0:00:15]} 56. Kf3 {[%clk 0:01:06]}  Kf5 {[%clk 0:00:15]} 57. e6 {[%clk 0:01:07]}  Kxe6 {[%clk 0:00:15]} 58. Kg4 {[%clk 0:01:07]}  Kd5 {[%clk 0:00:16]} 59. Kh3 {[%clk 0:01:08]}  Kc4 {[%clk 0:00:15]} 60. Kg4 {[%clk 0:01:09]}  Kb4 {[%clk 0:00:16]} 61. Kg5 {[%clk 0:01:10]}  Kxa4 {[%clk 0:00:17]} 62. Kg6 {[%clk 0:01:11]}  Kb3 {[%clk 0:00:17]} 63. Kxg7 {[%clk 0:01:12]}  a4 {[%clk 0:00:18]} 64. Kh6 {[%clk 0:01:12]}  a3 {[%clk 0:00:19]} 65. Kh5 {[%clk 0:01:13]}  a2 {[%clk 0:00:19]} 66. Kg4 {[%clk 0:01:14]}  a1=Q {[%clk 0:00:20]} 67. Kh3 {[%clk 0:01:15]}  Qf6 {[%clk 0:00:17]} 68. Kg4 {[%clk 0:01:16]}  Qg6+ {[%clk 0:00:18]} 69. Kf3 {[%clk 0:01:16]}  Qf5+ {[%clk 0:00:17]} 70. Ke3 {[%clk 0:01:17]}  Kc3 {[%clk 0:00:17]} 71. Ke2 {[%clk 0:01:18]}  Qf2+ {[%clk 0:00:16]} 72. Kd1 {[%clk 0:01:18]}  Qe1# {[%clk 0:00:17]} 0-1


[Site "https://www.chess.com"]

[Event "Titled Tuesday Blitz November 07 Late 2023"]
[White "Grigoriants, Sergey"]
[Black "Flameboard08"]
[WhiteFideId "4130804"]
[WhiteElo "2906"]
[BlackElo "2619"]
[Result "1-0"]
[Round "10"]
[TimeControl "180+1"]
[Date "2023.11.07"]
[WhiteClock "0:00:17"]
[BlackClock "0:00:00"]
[Board "20"]

1. d4 {[%clk 0:03:00]}  b6 {[%clk 0:02:58]} 2. e4 {[%clk 0:03:00]}  Bb7 {[%clk 0:02:59]} 3. Bd3 {[%clk 0:03:00]}  e6 {[%clk 0:02:59]} 4. Nf3 {[%clk 0:03:00]}  Nf6 {[%clk 0:03:00]} 5. Qe2 {[%clk 0:03:01]}  d5 {[%clk 0:03:00]} 6. e5 {[%clk 0:03:01]}  Ne4 {[%clk 0:03:01]} 7. Nbd2 {[%clk 0:03:01]}  Nxd2 {[%clk 0:03:01]} 8. Bxd2 {[%clk 0:03:02]}  c5 {[%clk 0:03:02]} 9. c3 {[%clk 0:03:02]}  Nc6 {[%clk 0:03:02]} 10. O-O {[%clk 0:03:03]}  Be7 {[%clk 0:03:03]} 11. a3 {[%clk 0:03:02]}  a5 {[%clk 0:03:03]} 12. Be3 {[%clk 0:03:00]}  Qc8 {[%clk 0:03:00]} 13. Bb5 {[%clk 0:02:48]}  Ba6 {[%clk 0:02:54]} 14. a4 {[%clk 0:02:48]}  c4 {[%clk 0:02:47]} 15. Bg5 {[%clk 0:02:38]}  Bxg5 {[%clk 0:02:35]} 16. Bxc6+ {[%clk 0:02:38]}  Qxc6 {[%clk 0:02:34]} 17. Nxg5 {[%clk 0:02:39]}  h6 {[%clk 0:02:22]} 18. Qh5 {[%clk 0:02:08]}  O-O {[%clk 0:02:21]} 19. Nh3 {[%clk 0:02:04]}  b5 {[%clk 0:02:18]} 20. Nf4 {[%clk 0:01:25]}  Qd7 {[%clk 0:01:27]} 21. Qg4 {[%clk 0:01:20]}  Kh7 {[%clk 0:01:15]} 22. Nh5 {[%clk 0:01:16]}  Rg8 {[%clk 0:01:06]} 23. Qxg7+ {[%clk 0:01:06]}  Rxg7 {[%clk 0:01:04]} 24. Nf6+ {[%clk 0:01:07]}  Kh8 {[%clk 0:01:04]} 25. Nxd7 {[%clk 0:01:08]}  b4 {[%clk 0:00:59]} 26. f4 {[%clk 0:00:58]}  f5 {[%clk 0:00:56]} 27. Nc5 {[%clk 0:00:57]}  Bc8 {[%clk 0:00:55]} 28. b3 {[%clk 0:00:40]}  cxb3 {[%clk 0:00:15]} 29. cxb4 {[%clk 0:00:36]}  axb4 {[%clk 0:00:12]} 30. Rfb1 {[%clk 0:00:31]}  Rga7 {[%clk 0:00:09]} 31. Rxb3 {[%clk 0:00:30]}  Rb8 {[%clk 0:00:07]} 32. Rab1 {[%clk 0:00:30]}  Kg7 {[%clk 0:00:06]} 33. Rxb4 {[%clk 0:00:30]}  Rba8 {[%clk 0:00:05]} 34. Rb8 {[%clk 0:00:29]}  Kf7 {[%clk 0:00:05]} 35. Rxa8 {[%clk 0:00:28]}  Rxa8 {[%clk 0:00:06]} 36. Rb6 {[%clk 0:00:26]}  Ke7 {[%clk 0:00:03]} 37. Kf2 {[%clk 0:00:26]}  Ra7 {[%clk 0:00:01]} 38. Kg3 {[%clk 0:00:26]}  Ra8 {[%clk 0:00:02]} 39. Kh4 {[%clk 0:00:26]}  Ra7 {[%clk 0:00:01]} 40. Kh5 {[%clk 0:00:26]}  Bd7 {[%clk 0:00:01]} 41. Rb7 {[%clk 0:00:24]}  Rxb7 {[%clk 0:00:01]} 42. Nxb7 {[%clk 0:00:25]}  Bxa4 {[%clk 0:00:02]} 43. Kxh6 {[%clk 0:00:24]}  Bd1 {[%clk 0:00:01]} 44. Nc5 {[%clk 0:00:23]}  Be2 {[%clk 0:00:02]} 45. Kg5 {[%clk 0:00:21]}  Bf1 {[%clk 0:00:02]} 46. g3 {[%clk 0:00:16]}  Bh3 {[%clk 0:00:01]} 47. Kh4 {[%clk 0:00:15]}  Bg4 {[%clk 0:00:01]} 48. h3 {[%clk 0:00:15]}  Bf3 {[%clk 0:00:01]} 49. g4 {[%clk 0:00:16]}  fxg4 {[%clk 0:00:02]} 50. hxg4 {[%clk 0:00:16]}  Kf7 {[%clk 0:00:01]} 51. Kg5 {[%clk 0:00:16]}  Be2 {[%clk 0:00:01]} 52. f5 {[%clk 0:00:17]}  exf5 {[%clk 0:00:01]} 53. gxf5 {[%clk 0:00:17]}  Bc4 {[%clk 0:00:00]} 54. f6 {[%clk 0:00:17]} 1-0


[Site "https://www.chess.com"]

[Event "Titled Tuesday Blitz November 07 Late 2023"]
[White "Rozman, Levy"]
[Black "Prithu Gupta"]
[WhiteFideId "2039877"]
[BlackFideId "46618546"]
[WhiteElo "2684"]
[BlackElo "2426"]
[Result "1-0"]
[Round "10"]
[TimeControl "180+1"]
[Date "2023.11.07"]
[WhiteClock "0:00:25"]
[BlackClock "0:00:00"]
[Board "28"]

1. e4 {[%clk 0:03:00]}  e5 {[%clk 0:03:00]} 2. Nc3 {[%clk 0:03:00]}  Nc6 {[%clk 0:02:59]} 3. Bc4 {[%clk 0:03:00]}  Nf6 {[%clk 0:02:29]} 4. d3 {[%clk 0:03:00]}  Bb4 {[%clk 0:02:27]} 5. Ne2 {[%clk 0:03:00]}  O-O {[%clk 0:02:27]} 6. O-O {[%clk 0:03:00]}  d6 {[%clk 0:02:26]} 7. Bg5 {[%clk 0:02:59]}  h6 {[%clk 0:01:40]} 8. Bxf6 {[%clk 0:02:58]}  Qxf6 {[%clk 0:01:41]} 9. Nd5 {[%clk 0:02:59]}  Qd8 {[%clk 0:01:41]} 10. c3 {[%clk 0:02:58]}  Ba5 {[%clk 0:01:40]} 11. b4 {[%clk 0:02:59]}  Bb6 {[%clk 0:01:40]} 12. a4 {[%clk 0:02:59]}  a5 {[%clk 0:01:39]} 13. Nxb6 {[%clk 0:02:49]}  cxb6 {[%clk 0:01:39]} 14. Qb3 {[%clk 0:02:47]}  axb4 {[%clk 0:01:35]} 15. cxb4 {[%clk 0:02:48]}  Qe7 {[%clk 0:01:34]} 16. f4 {[%clk 0:02:43]}  Be6 {[%clk 0:01:32]} 17. f5 {[%clk 0:02:41]}  Bxc4 {[%clk 0:01:24]} 18. Qxc4 {[%clk 0:02:40]}  Rfc8 {[%clk 0:00:59]} 19. Qb5 {[%clk 0:02:32]}  d5 {[%clk 0:00:51]} 20. Rab1 {[%clk 0:02:17]}  dxe4 {[%clk 0:00:46]} 21. dxe4 {[%clk 0:02:18]}  Nd4 {[%clk 0:00:44]} 22. Nxd4 {[%clk 0:02:17]}  exd4 {[%clk 0:00:45]} 23. e5 {[%clk 0:01:58]}  Qe8 {[%clk 0:00:38]} 24. Qxb6 {[%clk 0:01:56]}  Rxa4 {[%clk 0:00:29]} 25. Qxd4 {[%clk 0:01:47]}  Ra2 {[%clk 0:00:22]} 26. Rb2 {[%clk 0:01:33]}  Rc2 {[%clk 0:00:19]} 27. Rxa2 {[%clk 0:01:25]}  Rxa2 {[%clk 0:00:19]} 28. Rf2 {[%clk 0:01:18]}  Qa4 {[%clk 0:00:12]} 29. h3 {[%clk 0:01:11]}  Rxf2 {[%clk 0:00:10]} 30. Kxf2 {[%clk 0:00:56]}  Qc2+ {[%clk 0:00:10]} 31. Ke3 {[%clk 0:00:57]}  Qxg2 {[%clk 0:00:06]} 32. Qe4 {[%clk 0:00:42]}  Qxh3+ {[%clk 0:00:06]} 33. Kd4 {[%clk 0:00:43]}  Qf1 {[%clk 0:00:05]} 34. e6 {[%clk 0:00:42]}  Qd1+ {[%clk 0:00:05]} 35. Kc5 {[%clk 0:00:42]}  fxe6 {[%clk 0:00:04]} 36. fxe6 {[%clk 0:00:43]}  Qc1+ {[%clk 0:00:04]} 37. Kd6 {[%clk 0:00:40]}  Qd2+ {[%clk 0:00:04]} 38. Kc7 {[%clk 0:00:38]}  Qc3+ {[%clk 0:00:03]} 39. Kxb7 {[%clk 0:00:36]}  Qe1 {[%clk 0:00:00]} 40. Qxe1 {[%clk 0:00:25]} 1-0


[Site "https://www.chess.com"]

[Event "Titled Tuesday Blitz November 07 Late 2023"]
[White "Troff, Kayden"]
[Black "Osmak, Yuliia"]
[WhiteFideId "2047896"]
[BlackFideId "14101602"]
[WhiteElo "2786"]
[BlackElo "2524"]
[Result "1-0"]
[Round "10"]
[TimeControl "180+1"]
[Date "2023.11.07"]
[WhiteClock "0:01:01"]
[BlackClock "0:00:27"]
[Board "29"]

1. d4 {[%clk 0:03:00]}  Nf6 {[%clk 0:02:57]} 2. c4 {[%clk 0:03:01]}  e6 {[%clk 0:02:57]} 3. Nf3 {[%clk 0:03:00]}  c5 {[%clk 0:02:57]} 4. d5 {[%clk 0:03:00]}  d6 {[%clk 0:02:57]} 5. Nc3 {[%clk 0:02:59]}  exd5 {[%clk 0:02:57]} 6. cxd5 {[%clk 0:02:59]}  g6 {[%clk 0:02:58]} 7. Bf4 {[%clk 0:02:57]}  a6 {[%clk 0:02:56]} 8. a4 {[%clk 0:02:53]}  Bg7 {[%clk 0:02:55]} 9. h3 {[%clk 0:02:53]}  O-O {[%clk 0:02:47]} 10. e3 {[%clk 0:02:52]}  Qe7 {[%clk 0:02:39]} 11. Bd3 {[%clk 0:02:50]}  Nbd7 {[%clk 0:02:34]} 12. O-O {[%clk 0:02:45]}  Nh5 {[%clk 0:02:32]} 13. Bh2 {[%clk 0:02:43]}  Ne5 {[%clk 0:02:31]} 14. Be2 {[%clk 0:02:38]}  Nxf3+ {[%clk 0:02:19]} 15. Bxf3 {[%clk 0:02:34]}  Nf6 {[%clk 0:02:19]} 16. a5 {[%clk 0:02:29]}  Bf5 {[%clk 0:02:07]} 17. e4 {[%clk 0:02:17]}  Nxe4 {[%clk 0:01:51]} 18. Bxe4 {[%clk 0:02:14]}  Bxe4 {[%clk 0:01:49]} 19. Re1 {[%clk 0:02:14]}  f5 {[%clk 0:01:22]} 20. f3 {[%clk 0:02:12]}  Bd4+ {[%clk 0:01:15]} 21. Kh1 {[%clk 0:02:11]}  Rae8 {[%clk 0:00:49]} 22. fxe4 {[%clk 0:02:08]}  Qh4 {[%clk 0:00:42]} 23. exf5 {[%clk 0:01:46]}  Bf2 {[%clk 0:00:39]} 24. Rxe8 {[%clk 0:01:41]}  Rxe8 {[%clk 0:00:39]} 25. Qg4 {[%clk 0:01:39]}  Qe7 {[%clk 0:00:31]} 26. fxg6 {[%clk 0:01:03]}  Qe1+ {[%clk 0:00:30]} 27. Rxe1 {[%clk 0:01:01]}  Rxe1+ {[%clk 0:00:30]} 28. Bg1 {[%clk 0:01:02]}  Bxg1 {[%clk 0:00:31]} 29. gxh7+ {[%clk 0:01:02]}  Kxh7 {[%clk 0:00:29]} 30. Qh4+ {[%clk 0:01:01]}  Kg6 {[%clk 0:00:27]} 31. Qxe1 {[%clk 0:01:01]} 1-0


[Site "https://www.chess.com"]

[Event "Titled Tuesday Blitz November 07 Late 2023"]
[White "Leitao, Rafael"]
[Black "Kovacsy, Barnabas"]
[WhiteFideId "2101246"]
[BlackFideId "769290"]
[WhiteElo "2780"]
[BlackElo "2513"]
[Result "0-1"]
[Round "10"]
[TimeControl "180+1"]
[Date "2023.11.07"]
[WhiteClock "0:00:03"]
[BlackClock "0:00:30"]
[Board "30"]

1. c4 {[%clk 0:03:00]}  Nf6 {[%clk 0:02:59]} 2. Nc3 {[%clk 0:03:00]}  d5 {[%clk 0:02:59]} 3. cxd5 {[%clk 0:02:59]}  Nxd5 {[%clk 0:02:59]} 4. g3 {[%clk 0:03:00]}  g6 {[%clk 0:02:57]} 5. Bg2 {[%clk 0:03:00]}  Nxc3 {[%clk 0:02:57]} 6. bxc3 {[%clk 0:03:01]}  Bg7 {[%clk 0:02:57]} 7. Nf3 {[%clk 0:03:02]}  O-O {[%clk 0:02:57]} 8. O-O {[%clk 0:03:02]}  c5 {[%clk 0:02:57]} 9. Rb1 {[%clk 0:03:03]}  Nc6 {[%clk 0:02:55]} 10. Qc2 {[%clk 0:02:49]}  b6 {[%clk 0:02:37]} 11. d4 {[%clk 0:02:22]}  cxd4 {[%clk 0:02:30]} 12. Nxd4 {[%clk 0:02:20]}  Nxd4 {[%clk 0:02:22]} 13. cxd4 {[%clk 0:02:19]}  Bf5 {[%clk 0:02:06]} 14. e4 {[%clk 0:02:18]}  Bd7 {[%clk 0:02:06]} 15. d5 {[%clk 0:02:14]}  Qc8 {[%clk 0:02:02]} 16. Qxc8 {[%clk 0:02:02]}  Raxc8 {[%clk 0:02:03]} 17. Ba3 {[%clk 0:02:02]}  Rfe8 {[%clk 0:02:02]} 18. Rfc1 {[%clk 0:02:01]}  e6 {[%clk 0:01:45]} 19. h4 {[%clk 0:01:19]}  Rxc1+ {[%clk 0:01:04]} 20. Rxc1 {[%clk 0:01:18]}  Rc8 {[%clk 0:01:04]} 21. Rd1 {[%clk 0:01:09]}  exd5 {[%clk 0:01:02]} 22. exd5 {[%clk 0:01:08]}  Rc2 {[%clk 0:01:03]} 23. Be7 {[%clk 0:00:44]}  Rxa2 {[%clk 0:00:58]} 24. d6 {[%clk 0:00:18]}  Ra1 {[%clk 0:00:46]} 25. Rxa1 {[%clk 0:00:18]}  Bxa1 {[%clk 0:00:47]} 26. Kf1 {[%clk 0:00:19]}  a5 {[%clk 0:00:40]} 27. Ke2 {[%clk 0:00:18]}  Bd4 {[%clk 0:00:40]} 28. Bd5 {[%clk 0:00:16]}  Kg7 {[%clk 0:00:34]} 29. Kd3 {[%clk 0:00:11]}  Bf6 {[%clk 0:00:34]} 30. Bxf6+ {[%clk 0:00:07]}  Kxf6 {[%clk 0:00:34]} 31. Kd4 {[%clk 0:00:08]}  a4 {[%clk 0:00:32]} 32. f4 {[%clk 0:00:07]}  h6 {[%clk 0:00:32]} 33. Kc3 {[%clk 0:00:07]}  g5 {[%clk 0:00:31]} 34. hxg5+ {[%clk 0:00:07]}  hxg5 {[%clk 0:00:32]} 35. Kb4 {[%clk 0:00:08]}  gxf4 {[%clk 0:00:32]} 36. gxf4 {[%clk 0:00:08]}  Kf5 {[%clk 0:00:32]} 37. Bxf7 {[%clk 0:00:09]}  Kxf4 {[%clk 0:00:32]} 38. Bc4 {[%clk 0:00:08]}  Ke5 {[%clk 0:00:32]} 39. Bb5 {[%clk 0:00:07]}  Bxb5 {[%clk 0:00:30]} 40. Kxb5 {[%clk 0:00:07]}  Kxd6 {[%clk 0:00:29]} 41. Kxa4 {[%clk 0:00:03]}  Kc5 {[%clk 0:00:30]} 0-1


[Site "https://www.chess.com"]

[Event "Titled Tuesday Blitz November 07 Late 2023"]
[White "Perske, Thore"]
[Black "Remolar Gallen, Jose"]
[WhiteFideId "12902195"]
[BlackFideId "2215187"]
[WhiteElo "2653"]
[BlackElo "2535"]
[Result "1-0"]
[Round "10"]
[TimeControl "180+1"]
[Date "2023.11.07"]
[WhiteClock "0:02:26"]
[BlackClock "0:00:00"]
[Board "31"]

1. e4 {[%clk 0:03:00]}  c5 {[%clk 0:02:58]} 2. Nf3 {[%clk 0:03:00]}  d6 {[%clk 0:02:58]} 3. g3 {[%clk 0:03:01]}  Nf6 {[%clk 0:02:58]} 4. d3 {[%clk 0:03:01]}  g6 {[%clk 0:02:54]} 5. Bg2 {[%clk 0:03:01]}  Bg7 {[%clk 0:02:55]} 6. h3 {[%clk 0:03:01]}  O-O {[%clk 0:02:55]} 7. O-O {[%clk 0:03:02]}  Nc6 {[%clk 0:02:55]} 8. Nc3 {[%clk 0:03:03]}  Rb8 {[%clk 0:02:55]} 9. a4 {[%clk 0:03:03]}  a6 {[%clk 0:02:55]} 10. Be3 {[%clk 0:03:04]}  Bd7 {[%clk 0:02:48]} 11. Qd2 {[%clk 0:03:04]}  Re8 {[%clk 0:02:47]} 12. Bh6 {[%clk 0:03:04]}  Bh8 {[%clk 0:02:47]} 13. Ng5 {[%clk 0:03:04]}  b5 {[%clk 0:02:43]} 14. axb5 {[%clk 0:03:05]}  axb5 {[%clk 0:02:44]} 15. f4 {[%clk 0:03:05]}  b4 {[%clk 0:02:43]} 16. Nd1 {[%clk 0:03:05]}  Nd4 {[%clk 0:02:39]} 17. Ne3 {[%clk 0:03:04]}  Bg7 {[%clk 0:01:34]} 18. Bxg7 {[%clk 0:03:03]}  Kxg7 {[%clk 0:01:35]} 19. g4 {[%clk 0:03:01]}  h6 {[%clk 0:01:34]} 20. Nf3 {[%clk 0:02:58]}  Nxf3+ {[%clk 0:01:34]} 21. Bxf3 {[%clk 0:02:59]}  Bc6 {[%clk 0:01:30]} 22. e5 {[%clk 0:02:55]}  d5 {[%clk 0:01:11]} 23. exf6+ {[%clk 0:02:55]}  exf6 {[%clk 0:01:12]} 24. Ng2 {[%clk 0:02:48]}  Qd6 {[%clk 0:01:10]} 25. Rae1 {[%clk 0:02:45]}  Ra8 {[%clk 0:01:06]} 26. Rxe8 {[%clk 0:02:44]}  Bxe8 {[%clk 0:01:06]} 27. d4 {[%clk 0:02:44]}  c4 {[%clk 0:01:05]} 28. c3 {[%clk 0:02:42]}  b3 {[%clk 0:01:02]} 29. Rf2 {[%clk 0:02:42]}  Bc6 {[%clk 0:01:02]} 30. f5 {[%clk 0:02:38]}  Ra2 {[%clk 0:01:01]} 31. Qf4 {[%clk 0:02:37]}  Qd7 {[%clk 0:00:50]} 32. Re2 {[%clk 0:02:35]}  Ra1+ {[%clk 0:00:48]} 33. Kf2 {[%clk 0:02:35]}  g5 {[%clk 0:00:38]} 34. Qg3 {[%clk 0:02:34]}  Rc1 {[%clk 0:00:35]} 35. h4 {[%clk 0:02:33]}  Rc2 {[%clk 0:00:33]} 36. Ne3 {[%clk 0:02:33]}  Rxe2+ {[%clk 0:00:22]} 37. Kxe2 {[%clk 0:02:33]}  Qa7 {[%clk 0:00:23]} 38. hxg5 {[%clk 0:02:32]}  hxg5 {[%clk 0:00:23]} 39. Qd6 {[%clk 0:02:28]}  Qa2 {[%clk 0:00:22]} 40. Nd1 {[%clk 0:02:28]}  Be8 {[%clk 0:00:02]} 41. Qxd5 {[%clk 0:02:26]}  Qb1 {[%clk 0:00:02]} 42. Qe4 {[%clk 0:02:26]}  Qc1 {[%clk 0:00:02]} 43. Qxe8 {[%clk 0:02:26]}  Qc2+ {[%clk 0:00:00]} 44. Ke1 {[%clk 0:02:26]} 1-0


[Site "https://www.chess.com"]